Cogmind - Beta 13 @@@ ROGUE MODE // 2024.04.07 @ 04:41:35 Player: f_ Result: Destroyed by G-73 Enforcer with Phase Gun Performance ------------- Evolutions (9) 4500 Regions Visited (23) 4600 Robots Destroyed (48) 240 Value Destroyed (1396) 1396 Prototype IDs (31) 620 Alien Tech Used (0) 0 Bonus (4434) 4434 TOTAL SCORE: 15790 Bonus ------- High Alert Combat Kills 20 Follower Combat Kills 314 Entered DSFs 500 Aligned with FarCom 300 Met Imprinter 300 Met Warlord at Base 500 MAIN.C Attacked Warlord 500 Met Warlord at Research 2000 Cogmind --------- Core Integrity 0/1600 Matter 263/300 Energy 44/100 System Corruption 0% Temperature Cool (0) Movement Core (50) Location -1/Access Parts ------- > --- POWER (2) -------- (None) > --- PROPULSION (8) --- (None) > --- UTILITY (13) ----- (None) > --- WEAPON (2) ------- (None) > --- INVENTORY (5) ---- Drone Bay (2/2) Stealth Drone Bay (2/2) Improved Remote Datajack Peak State ------------ > --- POWER ------------ Micro Antimatter Reactor Micro Antimatter Reactor > --- PROPULSION ------- Cooled Nuclear Pulse Thruster Impulse Thruster Electron Diverter Electron Diverter Impulse Thruster Array > --- UTILITY ---------- Triangulator Advanced Targeting Computer Advanced Melee Analysis Suite Advanced Melee Analysis Suite Advanced Melee Analysis Suite Nanoactuators Improved Transmission Jammer Reaction Control System Hacking Suite Advanced Hacking Suite System Shield Stealth Drone Bay > --- WEAPON ----------- Makeshift Hammer Power Maul > --- INVENTORY -------- Micro Antimatter Reactor Impulse Thruster Advanced Cooling System Drone Bay Improved Remote Datajack [Rating: 142] Favorites ----------- Power Makeshift Power Source Engine Makeshift Power Source Power Core Nuclear Core Reactor Micro Antimatter Reactor Propulsion Cooled VTOL Module Treads Improved Treads Wheel Wheel Flight Unit Cooled VTOL Module Utility Advanced Melee Analysis Suite Device Trap Scanner Storage Medium Storage Unit Processor Advanced Melee Analysis Suite Hackware Hacking Suite Protection Core Shielding Weapon Power Maul Energy Gun Lightning Gun Energy Cannon Heavy Particle Cannon Ballistic Gun Light Assault Rifle Launcher Rocket Launcher Special Weapon Improved Remote Datajack Impact Weapon Power Maul Slashing Weapon Makeshift Axe Build | -11 -10 -10 -10 -9 -8 -7 -7 -7 -7 -6 -6 -6 -5 -5 -5 -4 -4 -4 -4 -3 -3 -2 -1 ------- Run | Yrd Mat Min Exi Min Mat Fac Low Low Zio Pro Fac DSF Fac Upp Upp Fac Upp Upp War Pro Res Res Acc Slots Evolved 18 | . . . . . 4 2 . . . . 2 . 2 . . 2 . . . . 2 2 2 Power 1 | . . . . . . . . . . . 1 . . . . . . . . . . . . Propulsion 6 | . . . . . 2 . . . . . . . . . . 1 . . . . 1 . 2 Utility 11 | . . . . . 2 2 . . . . 1 . 2 . . 1 . . . . 1 2 . Weapon . | . . . . . . . . . . . . . . . . . . . . . . . . Parts Attached 150 | 6 8 8 1 1 12 6 7 5 6 3 9 4 6 . 8 11 1 3 4 12 14 7 8 Power 30 | 1 2 2 . . 3 . 1 . 2 . 1 . . . 2 2 . 1 1 5 6 1 . Engine 10 | 1 . 1 . . . . 1 . 2 . 1 . . . 2 1 . . . 1 . . . Core 9 | . 2 1 . . 3 . . . . . . . . . . 1 . . 1 1 . . . Reactor 11 | . . . . . . . . . . . . . . . . . . 1 . 3 6 1 . Propulsion 39 | 2 2 1 . . 5 3 1 1 2 . 2 . 1 . . 5 . . . 3 4 1 6 Treads 1 | . . . . . 1 . . . . . . . . . . . . . . . . . . Leg . | . . . . . . . . . . . . . . . . . . . . . . . . Wheel 5 | 2 2 1 . . . . . . . . . . . . . . . . . . . . . Hover . | . . . . . . . . . . . . . . . . . . . . . . . . Flight 33 | . . . . . 4 3 1 1 2 . 2 . 1 . . 5 . . . 3 4 1 6 Utility 49 | 1 2 . 1 1 1 1 3 3 1 1 5 4 4 . 3 4 . 2 . 3 3 5 1 Device 25 | . 1 . . 1 . 1 1 1 . . 2 . 3 . 3 2 . 2 . 2 3 2 1 Storage 4 | 1 1 . 1 . . . . . . . . 1 . . . . . . . . . . . Processor 10 | . . . . . . . 1 . 1 . 2 3 . . . 1 . . . 1 . 1 . Hackware 5 | . . . . . . . 1 . . . 1 . 1 . . 1 . . . . . 1 . Protection 5 | . . . . . 1 . . 2 . 1 . . . . . . . . . . . 1 . Artifact . | . . . . . . . . . . . . . . . . . . . . . . . . Weapon 32 | 2 2 5 . . 3 2 2 1 1 2 1 . 1 . 3 . 1 . 3 1 1 . 1 Energy Gun 9 | 1 1 2 . . . 1 1 . 1 1 . . . . 1 . . . . . . . . Energy Cannon 3 | . . . . . 1 1 . . . . . . . . . . . . 1 . . . . Ballistic Gun 3 | 1 . 1 . . 1 . . . . . . . . . . . . . . . . . . Ballistic Cannon . | . . . . . . . . . . . . . . . . . . . . . . . . Launcher 4 | . 1 2 . . . . . . . . . . . . . . . . . . . . 1 Special Weapon 2 | . . . . . . . . . . . . . . . . . . . 1 1 . . . Impact Weapon 9 | . . . . . 1 . 1 . . 1 1 . 1 . 1 . 1 . 1 . 1 . . Slashing Weapon 2 | . . . . . . . . 1 . . . . . . 1 . . . . . . . . Piercing Weapon . | . . . . . . . . . . . . . . . . . . . . . . . . Special Melee Weapon . | . . . . . . . . . . . . . . . . . . . . . . . . Unidentified Prototypes 6 | . . . . . 1 . . . . . 1 . . . . 1 . . 1 . 2 . . Corrupted Parts 1 | . . . . . . . 1 . . . . . . . . . . . . . . . . System Corruption 1 | . . . . . . . 1 . . . . . . . . . . . . . . . . Parts Lost 63 | . 3 2 . . 1 . 1 2 . 9 . . . . 4 5 . . 5 4 4 3 20 Power 12 | . 2 . . . . . . . . 1 . . . . 1 3 . . 1 2 1 . 1 Propulsion 21 | . 1 1 . . 1 . . 1 . 3 . . . . . . . . 1 1 3 . 9 Utility 25 | . . . . . . . 1 1 . 4 . . . . 2 2 . . 3 1 . 2 9 Weapon 5 | . . 1 . . . . . . . 1 . . . . 1 . . . . . . 1 1 Highest Loss Streak 19 | . 2 2 . . 1 . 1 1 . 9 . . . . 2 3 . . 5 2 4 2 19 To Critical Strikes . | . . . . . . . . . . . . . . . . . . . . . . . . Average Slot Usage (%) 86 | . 82 100 90 100 76 67 76 88 94 89 66 86 83 88 90 92 89 93 98 83 78 86 76 Engine 3 | . 3 6 . . . . 4 7 7 6 6 6 5 5 10 7 . . 3 . . . . Core 3 | . 5 7 14 14 9 7 2 . . . . . . . . 1 5 5 5 2 . . . Reactor 1 | . . . . . . . . . . . . . . . . . . . . 2 7 8 7 Wheel 7 | . 21 28 28 28 16 . . . . . . . . . . . . . . . . . . Flight 17 | . . . . . 2 30 30 29 30 26 15 20 17 17 17 25 26 26 26 25 22 21 22 Device 10 | . 9 14 4 14 9 12 11 13 7 7 16 13 15 17 15 10 5 9 10 4 6 18 14 Storage 5 | . 14 14 14 14 8 . . . . . . 6 5 5 5 5 5 5 5 4 . . . Processor 9 | . . . . . . . 3 7 9 11 14 20 17 17 17 15 21 21 21 15 19 18 15 Hackware 6 | . . . . . . . 6 7 7 6 4 6 8 11 11 13 15 15 15 15 14 11 11 Protection 2 | . . . . . 6 3 . 5 15 15 . . . . . . . . . . . . 3 Energy Gun 3 | . 9 6 14 14 1 1 6 7 7 . . . . . . . . . . . . . . Ballistic Gun 1 | . 14 12 . . . . . . . . . . . . . . . . . . . . . Launcher 2 | . 4 9 14 14 3 . . . . . . . . . . . . . . . . . . Impact Weapon 4 | . . . . . 5 7 7 1 . 5 2 6 5 5 6 10 10 10 9 9 5 6 2 Slashing Weapon 1 | . . . . . . . . 5 7 7 6 6 5 5 2 . . . . . . . . Naked Turns 6 | . . . . . . . . . . . . . . . . . . . . . . . 6 Heaviest Build 63 | 10 33 37 56 58 63 17 20 22 22 19 13 22 23 22 32 38 25 30 30 31 36 34 30 Greatest Support 59 | 20 20 26 26 26 26 22 24 24 25 25 25 25 32 32 32 40 30 30 30 34 45 45 59 Greatest Overweight (x) 9 | . 9 1 2 2 3 . . . . 1 . . 1 . . . . . . 1 . . . Average Overweight (x) . | . 1 1 1 2 1 . . . . . . . . . . . . . . . . . . Largest Inventory Capacity 20 | 8 15 15 20 20 20 5 5 5 5 5 5 10 10 10 10 10 10 10 10 10 5 5 5 Average Capacity 9 | 7 12 15 17 20 18 5 5 5 5 5 5 9 10 10 10 10 10 10 10 9 5 5 5 Most Carried 20 | 1 4 15 15 14 20 5 5 5 5 5 4 8 10 9 10 10 8 9 10 10 5 5 5 Average Carried 8 | . 2 11 14 14 18 3 3 4 4 5 3 7 9 9 9 8 8 7 9 8 4 4 4 Final Capacity 20 | 8 15 15 20 20 5 5 5 5 5 5 5 10 10 10 10 10 10 10 10 5 5 5 5 Final Carried 15 | 1 4 15 15 14 4 3 4 5 5 5 3 8 9 9 10 8 8 9 10 5 5 5 4 Class Distribution -------------------- 35% | Hacker-Sprinter 31% | Mutant 24% | Sprinter 8% | Derelict-Sprinter Dominant Class ---------------- Mutant | -10/Materials Mutant | -10/Mines Mutant | -10/Exiles Mutant | -9/Mines Mutant | -8/Materials Sprinter | -7/Factory Sprinter | -7/Lower Caves Sprinter | -7/Lower Caves Derelict-Sprinter | -7/Zion Derelict-Sprinter | -6/Proximity Caves Derelict-Sprinter | -6/Factory Sprinter | -6/DSF Hacker-Sprinter | -5/Factory Hacker-Sprinter | -5/Upper Caves Hacker-Sprinter | -5/Upper Caves Hacker-Sprinter | -4/Factory Hacker-Sprinter | -4/Upper Caves Hacker-Sprinter | -4/Upper Caves Hacker-Sprinter | -4/Warlord Hacker-Sprinter | -3/Proximity Caves Hacker-Sprinter | -3/Research Hacker-Sprinter | -2/Research Hacker-Sprinter | -1/Access Resources | -11 -10 -10 -10 -9 -8 -7 -7 -7 -7 -6 -6 -6 -5 -5 -5 -4 -4 -4 -4 -3 -3 -2 -1 ----------- Run | Yrd Mat Min Exi Min Mat Fac Low Low Zio Pro Fac DSF Fac Upp Upp Fac Upp Upp War Pro Res Res Acc Matter Collected 1616 | 193 98 173 . . 65 59 146 50 45 . 50 . 137 3 75 . . 115 121 85 39 135 27 Remotely . | . . . . . . . . . . . . . . . . . . . . . . . . Salvage Created 1733 | . 154 72 . . 184 59 542 277 . . . . 114 . 19 . . 72 . 75 101 18 46 Parts 76 | . 11 9 . . 9 . 18 17 . . . . 4 . 1 . . 4 . . 3 . . Haulers Intercepted 2 | . . . . . 1 . . . . . . . 1 . . . . . . . . . . Recyclers Shooed . | . . . . . . . . . . . . . . . . . . . . . . . . Parts Field Recycled . | . . . . . . . . . . . . . . . . . . . . . . . . Retrieved Matter . | . . . . . . . . . . . . . . . . . . . . . . . . Parts Self-Destructed 14 | . . . . . . . 3 6 . 3 . . . . 1 . . 1 . . . . . Prevented 25 | . . . . . . . 3 10 . . . . . . 9 . . 3 . . . . . Kills | -11 -10 -10 -10 -9 -8 -7 -7 -7 -7 -6 -6 -6 -5 -5 -5 -4 -4 -4 -4 -3 -3 -2 -1 ------- Run | Yrd Mat Min Exi Min Mat Fac Low Low Zio Pro Fac DSF Fac Upp Upp Fac Upp Upp War Pro Res Res Acc Combat Hostiles Destroyed 36 | . 4 6 . . 5 . 9 6 . . . . . . 1 . . 1 . 2 2 . . Melee 10 | . . . . . 4 . 2 . . . . . . . 1 . . 1 . . 2 . . Guns 16 | . 2 3 . . . . 5 6 . . . . . . . . . . . . . . . AOE 5 | . 2 3 . . . . . . . . . . . . . . . . . . . . . Classes Destroyed 11 | . 4 . . . 1 1 3 . . . . . . . . . . 1 . 1 . . . Worker 1 | . 1 . . . . . . . . . . . . . . . . . . . . . . Hauler 2 | . . . . . 1 . . . . . . . 1 . . . . . . . . . . Operator 2 | . . . . . . 1 . . . . . . . . . . . . . . . 1 . Drone 2 | . . . . . . . . . . . . . . . . . . . . 2 . . . Watcher 7 | . 1 . . . . 1 . . . . . . 1 . . . . . . 2 1 . 1 Swarmer 19 | . 1 6 . . 3 . 3 3 . . . . . . 1 . . . . . 2 . . Grunt 7 | . 3 . . . 2 . . 2 . . . . . . . . . . . . . . . Duelist 1 | . . . . . . . . 1 . . . . . . . . . . . . . . . Sentry 1 | . . . . . . . . . . . . . . . . . . 1 . . . . . Savage 3 | . . . . . . . 3 . . . . . . . . . . . . . . . . Butcher 2 | . . . . . . . 2 . . . . . . . . . . . . . . . . Mutant 1 | . . . . . . . 1 . . . . . . . . . . . . . . . . Best Kill Streak 4 | . 4 3 . . 3 1 4 3 . . . . 1 . 1 . . 1 . 2 2 1 1 Combat Bots Only 4 | . 2 3 . . 3 . 4 3 . . . . . . 1 . . 1 . 2 2 . . Max Kills in Single Turn 2 | . 2 2 . . 1 1 1 1 . . . . 1 . 1 . . 1 . 1 1 1 1 Gunslinging . | . . . . . . . . . . . . . . . . . . . . . . . . Exploded 2 | . 1 2 . . . . . . . . . . . . . . . . . . . . . Melee 1 | . . . . . 1 . 1 . . . . . . . 1 . . 1 . . 1 . . Uniques/NPCs Destroyed . | . . . . . . . . . . . . . . . . . . . . . . . . Combat | -11 -10 -10 -10 -9 -8 -7 -7 -7 -7 -6 -6 -6 -5 -5 -5 -4 -4 -4 -4 -3 -3 -2 -1 -------- Run | Yrd Mat Min Exi Min Mat Fac Low Low Zio Pro Fac DSF Fac Upp Upp Fac Upp Upp War Pro Res Res Acc Hostile Shots Fired 771 | . 31 19 . . 40 . 23 43 . 97 . 36 24 2 49 32 3 11 37 62 35 40 187 Missed 384 | . 3 4 . . 12 . 11 22 . 49 . 16 19 1 36 15 1 7 24 39 14 25 86 Damage Taken 7255 | . 349 113 . . 308 . 209 185 . 737 . 188 73 21 255 342 39 91 323 518 429 343 2732 Core 2627 | . 72 26 . . 11 . 36 70 . 240 . 9 31 . 116 100 . 24 6 111 105 50 1620 Absorbed by Shields 104 | . . . . . . . . . . . . 46 . . . . . . . . . . 58 Redirected to Shielding 39 | . . . . . . . . 10 . 29 . . . . . . . . . . . . . Regen/Repaired (Parts) 165 | . . . . . . . . . 24 . . . . . . . . . 141 . . . . Core Remaining (%) 84 | 100 . . . 60 98 . . . . 50 . 98 . . 85 . . . . 79 91 96 . Volleys Fired 148 | . 17 15 . . . 6 56 29 . . . . . . 4 . . . 12 9 . . . Largest 2 | . 2 2 . . . 1 1 1 . . . . . . 1 . . . 1 1 . . . Hottest 70 | . 70 70 . . . 63 55 55 . . . . . . 65 . . . 7 7 . . . Shots Fired 172 | . 30 25 . . . 6 56 30 . . . . . . 4 . . . 12 9 . . . Gun 140 | . 28 22 . . . . 56 30 . . . . . . 4 . . . . . . . . Cannon 6 | . . . . . . 6 . . . . . . . . . . . . . . . . . Launcher 5 | . 2 3 . . . . . . . . . . . . . . . . . . . . . Special 21 | . . . . . . . . . . . . . . . . . . . 12 9 . . . Kinetic 33 | . 15 18 . . . . . . . . . . . . . . . . . . . . . Thermal 17 | . 13 4 . . . . . . . . . . . . . . . . . . . . . Explosive 5 | . 2 3 . . . . . . . . . . . . . . . . . . . . . Electromagnetic 96 | . . . . . . 6 56 30 . . . . . . 4 . . . . . . . . Robot Hit Streak 12 | . 9 5 . . . 4 6 9 . . . . . . 1 . . . 12 6 . . . Robot Miss Streak 7 | . 1 7 . . . 1 3 2 . . . . . . 2 . . . . 1 . . . Penetration Max . | . . . . . . . . . . . . . . . . . . . . . . . . Secondary Targets . | . . . . . . . . . . . . . . . . . . . . . . . . Shots Hit Robots 155 | . 22 10 . . 8 6 45 21 . 1 . 1 4 . 2 . . 3 13 11 4 1 3 Core Hits 54 | . 13 7 . . 3 . 15 13 . . . . 1 . . . . 1 . . 1 . . Critical Kills 3 | . . . . . 2 . . . . . . . . . . . . 1 . . . . . Critical Parts Destroyed 7 | . . . . . 2 . 2 . . . . . . . . . . 1 1 1 . . . Critical Strikes 14 | . . 1 . . 4 . 5 . . . . . . . . . . 2 1 1 . . . Burn 1 | . . 1 . . . . . . . . . . . . . . . . . . . . . Corrupt 3 | . . . . . . . 3 . . . . . . . . . . . . . . . . Smash 10 | . . . . . 4 . 2 . . . . . . . . . . 2 1 1 . . . Melee Attacks 115 | . . . . . 11 1 11 1 1 5 . 1 17 . 5 18 . 3 1 6 7 19 8 Impact 104 | . . . . . 11 1 11 . . . . 1 13 . 5 18 . 3 1 6 7 19 8 Slashing 11 | . . . . . . . . 1 1 5 . . 4 . . . . . . . . . . Piercing . | . . . . . . . . . . . . . . . . . . . . . . . . Sneak Attacks 7 | . . . . . 3 1 . . . . . 1 2 . . . . . . . . . . Combat Hostiles 3 | . . . . . 2 . . . . . . 1 . . . . . . . . . . . Follow-up Attacks 2 | . . . . . . . 1 . . . . . 1 . . . . . . . . . . Damage Inflicted 4272 | . 386 207 . . 492 246 1001 369 . 42 . 100 377 . 77 . . 122 74 271 233 76 199 Guns 1284 | . 220 87 . . . . 593 369 . . . . . . 15 . . . . . . . . Cannons 164 | . . . . . . 164 . . . . . . . . . . . . . . . . . Explosions 286 | . 166 120 . . . . . . . . . . . . . . . . . . . . . Melee 2517 | . . . . . 471 82 408 . . 42 . 100 377 . 62 . . 122 74 271 233 76 199 Ramming 21 | . . . . . 21 . . . . . . . . . . . . . . . . . . Kinetic 145 | . 95 50 . . . . . . . . . . . . . . . . . . . . . Thermal 162 | . 125 37 . . . . . . . . . . . . . . . . . . . . . Explosive 286 | . 166 120 . . . . . . . . . . . . . . . . . . . . . Electromagnetic 1141 | . . . . . . 164 593 369 . . . . . . 15 . . . . . . . . Impact 2387 | . . . . . 471 82 408 . . . . 100 289 . 62 . . 122 74 271 233 76 199 Slashing 130 | . . . . . . . . . . 42 . . 88 . . . . . . . . . . Piercing . | . . . . . . . . . . . . . . . . . . . . . . . . Highest Corruption 2 | . . . . . . 1 2 2 2 . . . . . . . . . . . . . . Average Corruption 1 | . . . . . . 1 1 2 2 . . . . . . . . . . . . . . Corruption Purged . | . . . . . . . . . . . . . . . . . . . . . . . . Corruption Blocked 6 | . . . . . . . . . . . . . . . . . . . . . . 6 . Effects 10 | . . . . . . . 5 5 . . . . . . . . . . . . . . . Message Errors 2 | . . . . . . . . 2 . . . . . . . . . . . . . . . Energy Discharges 2 | . . . . . . . 1 1 . . . . . . . . . . . . . . . Parts Fused 1 | . . . . . . . 1 . . . . . . . . . . . . . . . . Data Loss (minor) 2 | . . . . . . . 2 . . . . . . . . . . . . . . . . Data Loss (major) 2 | . . . . . . . 1 1 . . . . . . . . . . . . . . . Misfires 1 | . . . . . . . . 1 . . . . . . . . . . . . . . . Overload Shots . | . . . . . . . . . . . . . . . . . . . . . . . . Overflow Damage 1017 | . . . . . 220 81 118 . . . . . 58 . 37 . . 44 74 167 82 66 70 Projectiles 49 | . . . . . . 49 . . . . . . . . . . . . . . . . . Explosions . | . . . . . . . . . . . . . . . . . . . . . . . . Melee 968 | . . . . . 220 32 118 . . . . . 58 . 37 . . 44 74 167 82 66 70 Knockbacks 5 | . . . . . . . . . . . . 1 . . . . . . . 1 1 1 1 Impact 5 | . . . . . . . . . . . . 1 . . . . . . . 1 1 1 1 Kinetic . | . . . . . . . . . . . . . . . . . . . . . . . . Secondary . | . . . . . . . . . . . . . . . . . . . . . . . . Self-Inflicted Damage 10 | . . . . . 10 . . . . . . . . . . . . . . . . . . Shots . | . . . . . . . . . . . . . . . . . . . . . . . . Rammed 2 | . 1 . . . 1 . . . . . . . . . . . . . . . . . . Targets Rammed 2 | . 1 . . . 1 . . . . . . . . . . . . . . . . . . Kicked . | . . . . . . . . . . . . . . . . . . . . . . . . Crushed . | . . . . . . . . . . . . . . . . . . . . . . . . Highest Temperature 301 | . 224 60 . . . 70 138 19 . . . . 8 . 39 17 . . . 39 180 16 301 Average Temperature 76 | . 111 33 . . . 29 42 11 . . . . 8 . 17 7 . . . 21 31 7 138 Received Heat Transfer 818 | . 180 . . . . . . 18 . 87 . . 27 . 117 154 . 18 12 103 30 36 36 Effects 5 | . 1 . . . . . . . . . . . . . . . . . . . . . 4 Energy Bleed 2 | . 1 . . . . . . . . . . . . . . . . . . . . . 1 Interference 3 | . . . . . . . . . . . . . . . . . . . . . . . 3 Siege Activations . | . . . . . . . . . . . . . . . . . . . . . . . . Robots Corrupted 1 | . . . . . . . 1 . . . . . . . . . . . . . . . . Combat Hostiles 1 | . . . . . . . 1 . . . . . . . . . . . . . . . . Parts Fried 22 | . . . . . 1 3 7 . . . . . 1 . . . . 1 . 6 . 3 . Impact Corruptions 34 | . . . . . 5 1 7 . . . . . 1 . 1 . . 1 2 7 3 3 3 Robots Melted . | . . . . . . . . . . . . . . . . . . . . . . . . Combat Hostiles . | . . . . . . . . . . . . . . . . . . . . . . . . Parts Melted 1 | . 1 . . . . . . . . . . . . . . . . . . . . . . Heat Transferred 555 | . 370 185 . . . . . . . . . . . . . . . . . . . . . Parts Sabotaged . | . . . . . . . . . . . . . . . . . . . . . . . . Parts Stolen . | . . . . . . . . . . . . . . . . . . . . . . . . Parts Stripped . | . . . . . . . . . . . . . . . . . . . . . . . . Power Chain Reactions . | . . . . . . . . . . . . . . . . . . . . . . . . Alert | -11 -10 -10 -10 -9 -8 -7 -7 -7 -7 -6 -6 -6 -5 -5 -5 -4 -4 -4 -4 -3 -3 -2 -1 ------- Run | Yrd Mat Min Exi Min Mat Fac Low Low Zio Pro Fac DSF Fac Upp Upp Fac Upp Upp War Pro Res Res Acc Peak Influence 558 | . 160 230 . . 150 94 . . . . 39 44 210 . . 268 . . . . 558 488 409 Initial 318 | . . 62 . . . 22 . . . . 18 29 23 . . 191 . . . . 318 153 292 Average 147 | . 77 125 . . 57 52 . . . . 29 38 111 . . 198 . . . . 435 290 319 Maximum Alert Level 2 | . . 1 . . . . . . . . . . 1 . . 1 . . . . 2 2 2 Low Security (%) 73 | 100 100 78 . 100 100 100 . . . . 100 100 90 . . 71 . . . . . 35 4 Level 1 20 | . . 21 . . . . . . . . . . 9 . . 28 . . . . 41 36 92 Level 2 5 | . . . . . . . . . . . . . . . . . . . . . 58 28 2 Level 3 . | . . . . . . . . . . . . . . . . . . . . . . . . Level 4 . | . . . . . . . . . . . . . . . . . . . . . . . . Level 5 . | . . . . . . . . . . . . . . . . . . . . . . . . High Security . | . . . . . . . . . . . . . . . . . . . . . . . . Max Security . | . . . . . . . . . . . . . . . . . . . . . . . . Squads Dispatched 21 | . . 2 . . 1 4 . . . . . . 7 . . . . . . . 2 1 4 Investigation 16 | . . 2 . . . 3 . . . . . . 7 . . . . . . . 1 1 2 Extermination . | . . . . . . . . . . . . . . . . . . . . . . . . Reinforcement 5 | . . . . . 1 1 . . . . . . . . . . . . . . 1 . 2 Assault . | . . . . . . . . . . . . . . . . . . . . . . . . Garrison . | . . . . . . . . . . . . . . . . . . . . . . . . Intercept . | . . . . . . . . . . . . . . . . . . . . . . . . Searches Triggered 1 | . . . . . . . . . . . . . . . . . . . . . . . 1 Construction Impeded . | . . . . . . . . . . . . . . . . . . . . . . . . Haulers Reinforced . | . . . . . . . . . . . . . . . . . . . . . . . . Active Scanning Responses . | . . . . . . . . . . . . . . . . . . . . . . . . Cargo Convoy Interrupts . | . . . . . . . . . . . . . . . . . . . . . . . . Stealth | -11 -10 -10 -10 -9 -8 -7 -7 -7 -7 -6 -6 -6 -5 -5 -5 -4 -4 -4 -4 -3 -3 -2 -1 --------- Run | Yrd Mat Min Exi Min Mat Fac Low Low Zio Pro Fac DSF Fac Upp Upp Fac Upp Upp War Pro Res Res Acc Distress Signals 11 | . 1 . . . 4 . . . . . . . 2 . . . . . 1 1 . 2 . Communications Jammed . | . . . . . . . . . . . . . . . . . . . . . . . . Distress Signals . | . . . . . . . . . . . . . . . . . . . . . . . . Times Spotted 265 | . 10 4 . . 14 1 14 12 . 21 . 4 16 1 26 5 1 5 30 33 11 27 30 Peak Tracking Total 16 | . 3 3 . . 7 1 6 4 . 11 . 3 9 1 12 4 7 4 12 11 7 8 16 Tactical Retreats 53 | . 1 . . . 1 . 4 5 . 3 . 1 3 . 7 1 3 . 3 9 2 6 4 Traps | -11 -10 -10 -10 -9 -8 -7 -7 -7 -7 -6 -6 -6 -5 -5 -5 -4 -4 -4 -4 -3 -3 -2 -1 ------- Run | Yrd Mat Min Exi Min Mat Fac Low Low Zio Pro Fac DSF Fac Upp Upp Fac Upp Upp War Pro Res Res Acc Traps Triggered 4 | . 1 . . . . . . . . . . 1 . . . . . . . . 1 . 1 Indirectly . | . . . . . . . . . . . . . . . . . . . . . . . . Trap Hack Attempts . | . . . . . . . . . . . . . . . . . . . . . . . . Triggered . | . . . . . . . . . . . . . . . . . . . . . . . . Disarmed . | . . . . . . . . . . . . . . . . . . . . . . . . Reprogrammed . | . . . . . . . . . . . . . . . . . . . . . . . . Reused . | . . . . . . . . . . . . . . . . . . . . . . . . Traps Reconfigurated 35 | . . . . . . . . . . . 1 4 30 . . . . . . . . . . Traps Extracted . | . . . . . . . . . . . . . . . . . . . . . . . . Installed . | . . . . . . . . . . . . . . . . . . . . . . . . Triggered 8 | . . . . . . . . . . . . . . . . . . . 8 . . . . Objects Rigged 2 | . . . . . 2 . . . . . . . . . . . . . . . . . . Machines | -11 -10 -10 -10 -9 -8 -7 -7 -7 -7 -6 -6 -6 -5 -5 -5 -4 -4 -4 -4 -3 -3 -2 -1 ---------- Run | Yrd Mat Min Exi Min Mat Fac Low Low Zio Pro Fac DSF Fac Upp Upp Fac Upp Upp War Pro Res Res Acc Machines Disabled . | . . . . . . . . . . . . . . . . . . . . . . . . Max in Single Turn . | . . . . . . . . . . . . . . . . . . . . . . . . Machines Repaired . | . . . . . . . . . . . . . . . . . . . . . . . . Machines Dismantled . | . . . . . . . . . . . . . . . . . . . . . . . . Machines Sabotaged . | . . . . . . . . . . . . . . . . . . . . . . . . Overloaded Fab Kills . | . . . . . . . . . . . . . . . . . . . . . . . . Hacking | -11 -10 -10 -10 -9 -8 -7 -7 -7 -7 -6 -6 -6 -5 -5 -5 -4 -4 -4 -4 -3 -3 -2 -1 --------- Run | Yrd Mat Min Exi Min Mat Fac Low Low Zio Pro Fac DSF Fac Upp Upp Fac Upp Upp War Pro Res Res Acc Machines Accessed 53 | . 4 1 1 . 7 3 . 1 . . 5 . 13 . 1 3 1 . 2 1 5 3 2 Terminals 38 | . 2 1 . . 6 2 . . . . 4 . 9 . 1 2 . . . 1 5 3 2 Fabricators 2 | . . . . . . 1 . . . . . . 1 . . . . . . . . . . Repair Stations . | . . . . . . . . . . . . . . . . . . . . . . . . Recycling Units 6 | . 2 . . . . . . . . . . . 3 . . 1 . . . . . . . Scanalyzers 2 | . . . . . 1 . . . . . 1 . . . . . . . . . . . . Garrison Access . | . . . . . . . . . . . . . . . . . . . . . . . . Total Hacks 161 | . 6 4 1 . 27 9 . 1 . . 10 . 40 . 4 10 1 . 3 1 23 14 7 Successful 73 | . 2 1 1 . 11 2 . 1 . . 3 . 19 . 4 4 1 . 3 1 14 4 2 Failed 86 | . 4 3 . . 15 7 . . . . 7 . 21 . . 5 . . . . 9 10 5 Catastrophic 21 | . 1 . . . 4 1 . . . . 1 . 6 . . 1 . . . . 4 1 2 Database Lockouts 2 | . . . . . 1 . . . . . . . . . . 1 . . . . . . . Manual 95 | . 6 4 1 . 20 4 . . . . 5 . 26 . . 11 . . . . 9 9 . Terminals 134 | . 3 4 . . 21 5 . . . . 9 . 34 . 4 9 . . . 1 23 14 7 Fabricators 6 | . . . . . . 4 . . . . . . 2 . . . . . . . . . . Repair Stations . | . . . . . . . . . . . . . . . . . . . . . . . . Recycling Units 8 | . 3 . . . . . . . . . . . 4 . . 1 . . . . . . . Scanalyzers 7 | . . . . . 6 . . . . . 1 . . . . . . . . . . . . Garrison Access . | . . . . . . . . . . . . . . . . . . . . . . . . Terminal Hacks 48 | . . 1 1 . 4 . . 1 . . 2 . 10 . 4 2 1 . 3 1 13 3 2 Record 7 | . . . . . . . . . . . . . . . 4 . . . 2 . . . 1 Part Schematic 1 | . . . . . . . . . . . 1 . . . . . . . . . . . . Robot Schematic 1 | . . . . . . . . . . . . . 1 . . . . . . . . . . Robot Analysis 5 | . . . . . 2 . . . . . . . 1 . . 1 . . . . 1 . . Prototype ID Bank 1 | . . . . . . . . . . . . . . . . . . . . . 1 . . Open Door 4 | . . . . . . . . 1 . . . . . . . . 1 . 1 1 . . . Open DSF 4 | . . . . . . . . . . . 1 . 1 . . . . . . . 1 1 . Level Access Points 3 | . . . . . . . . . . . . . . . . . . . . . 1 1 1 Branch Access Points 4 | . . 1 . . 1 . . . . . . . 1 . . . . . . . . 1 . Emergency Access Points 1 | . . . . . . . . . . . . . . . . . . . . . 1 . . Terminal Index 3 | . . . . . . . . . . . . . 1 . . 1 . . . . 1 . . Fabricator Index 1 | . . . . . . . . . . . . . 1 . . . . . . . . . . Alert Level 3 | . . . . . . . . . . . . . 2 . . . . . . . 1 . . Unreport Threat 4 | . . . . . 1 . . . . . . . 1 . . . . . . . 2 . . Security Status 1 | . . . . . . . . . . . . . . . . . . . . . 1 . . Patrol Status 1 | . . . . . . . . . . . . . . . . . . . . . 1 . . Recall Investigation 1 | . . . . . . . . . . . . . 1 . . . . . . . . . . Registered Components 1 | . . . . . . . . . . . . . . . . . . . . . 1 . . Zone Layout 1 | . . . . . . . . . . . . . . . . . . . . . 1 . . Derelict Proto ID Bank 1 | . . . 1 . . . . . . . . . . . . . . . . . . . . Fabricator Hacks 4 | . . . . . . 2 . . . . . . 2 . . . . . . . . . . Load Schematic 2 | . . . . . . 1 . . . . . . 1 . . . . . . . . . . Build 2 | . . . . . . 1 . . . . . . 1 . . . . . . . . . . Repair Station Hacks . | . . . . . . . . . . . . . . . . . . . . . . . . Recycling Unit Hacks . | . . . . . . . . . . . . . . . . . . . . . . . . Scanalyzer 6 | . . . . . 6 . . . . . . . . . . . . . . . . . . Insert Component 3 | . . . . . 3 . . . . . . . . . . . . . . . . . . Analyze 3 | . . . . . 3 . . . . . . . . . . . . . . . . . . Garrison Access Hacks . | . . . . . . . . . . . . . . . . . . . . . . . . Unauthorized Hacks 15 | . 2 . . . 1 . . . . . 1 . 7 . . 2 . . . . 1 1 . Terminals 10 | . . . . . 1 . . . . . 1 . 5 . . 1 . . . . 1 1 . Assimilate 4 | . . . . . . . . . . . . . 3 . . . . . . . 1 . . Botnet 5 | . . . . . . . . . . . 1 . 2 . . 1 . . . . . 1 . Detonate 1 | . . . . . 1 . . . . . . . . . . . . . . . . . . Fabricators . | . . . . . . . . . . . . . . . . . . . . . . . . Repair Stations . | . . . . . . . . . . . . . . . . . . . . . . . . Recycling Units 5 | . 2 . . . . . . . . . . . 2 . . 1 . . . . . . . Reject 1 | . . . . . . . . . . . . . . . . 1 . . . . . . . Recyclers 4 | . 2 . . . . . . . . . . . 2 . . . . . . . . . . Scanalyzers . | . . . . . . . . . . . . . . . . . . . . . . . . Garrison Access . | . . . . . . . . . . . . . . . . . . . . . . . . Data Cores Recovered . | . . . . . . . . . . . . . . . . . . . . . . . . Used . | . . . . . . . . . . . . . . . . . . . . . . . . Hacking Detections 43 | . 3 1 . . 7 3 . . . . 4 . 13 . . 3 . . . 1 4 2 2 Full Trace Events 18 | . . 1 . . 3 3 . . . . . . 7 . . . . . . . 1 1 2 Feedback Events 1 | . . . . . . 1 . . . . . . . . . . . . . . . . . Corruption 1 | . . . . . . 1 . . . . . . . . . . . . . . . . . Feedback Blocked . | . . . . . . . . . . . . . . . . . . . . . . . . Robot Schematics Acquired 5 | . . . . . . . . . 4 . . . 1 . . . . . . . . . . Robots Built . | . . . . . . . . . . . . . . . . . . . . . . . . Authchips . | . . . . . . . . . . . . . . . . . . . . . . . . Time . | . . . . . . . . . . . . . . . . . . . . . . . . Total Robot Build Rating . | . . . . . . . . . . . . . . . . . . . . . . . . Part Schematics Acquired 18 | . . . . . 2 . . . 15 . 1 . . . . . . . . . . . . Parts Built 3 | . . . . . . 1 . . . . . . 2 . . . . . . . . . . Authchips . | . . . . . . . . . . . . . . . . . . . . . . . . Time 146 | . . . . . . 62 . . . . . . 84 . . . . . . . . . . Total Part Build Rating 10 | . . . . . . 2 . . . . . . 8 . . . . . . . . . . Parts Repaired . | . . . . . . . . . . . . . . . . . . . . . . . . Time . | . . . . . . . . . . . . . . . . . . . . . . . . Parts Recycled . | . . . . . . . . . . . . . . . . . . . . . . . . Recycled Matter . | . . . . . . . . . . . . . . . . . . . . . . . . Retrieved Matter . | . . . . . . . . . . . . . . . . . . . . . . . . Retrieved Components . | . . . . . . . . . . . . . . . . . . . . . . . . Parts Scanalyzed 3 | . . . . . 3 . . . . . . . . . . . . . . . . . . Part Schematics Acquired 2 | . . . . . 2 . . . . . . . . . . . . . . . . . . Parts Damaged 1 | . . . . . 1 . . . . . . . . . . . . . . . . . . Bothacking | -11 -10 -10 -10 -9 -8 -7 -7 -7 -7 -6 -6 -6 -5 -5 -5 -4 -4 -4 -4 -3 -3 -2 -1 ------------ Run | Yrd Mat Min Exi Min Mat Fac Low Low Zio Pro Fac DSF Fac Upp Upp Fac Upp Upp War Pro Res Res Acc Used RIF Installer . | . . . . . . . . . . . . . . . . . . . . . . . . Robots Hacked . | . . . . . . . . . . . . . . . . . . . . . . . . Non-combat . | . . . . . . . . . . . . . . . . . . . . . . . . Combat . | . . . . . . . . . . . . . . . . . . . . . . . . Robot Hacks Applied . | . . . . . . . . . . . . . . . . . . . . . . . . Relay Couplers Released . | . . . . . . . . . . . . . . . . . . . . . . . . Fabnet Peak Effective % . | . . . . . . . . . . . . . . . . . . . . . . . . Robots Rewired 11 | . . . . . . . . . . . . . 1 . . . . . 5 5 . . . Allies Hacked 1 | . . . . . . . . . . . . . . . . . . . . . 1 . . Hacks Repelled . | . . . . . . . . . . . . . . . . . . . . . . . . Allies | -11 -10 -10 -10 -9 -8 -7 -7 -7 -7 -6 -6 -6 -5 -5 -5 -4 -4 -4 -4 -3 -3 -2 -1 -------- Run | Yrd Mat Min Exi Min Mat Fac Low Low Zio Pro Fac DSF Fac Upp Upp Fac Upp Upp War Pro Res Res Acc Total Allies 14 | . . . . . . . . . . . . . 3 . . . . . 5 5 1 . . Largest Group 5 | . . . . . . . . . . . . . 2 . . . . . 5 5 1 . . Highest-Rated Group 279 | . . . . . . . . . . . . . 67 . . . . . 279 70 26 . . Highest-Rated Ally 65 | . . . . . . . . . . . . . 41 . . . . . 65 14 26 . . Total Orders 11 | . . . . . . . . . . . . . . . 5 . . 6 . . . . . STAY 1 | . . . . . . . . . . . . . . . . . . 1 . . . . . EXPLORE 5 | . . . . . . . . . . . . . . . 3 . . 2 . . . . . RETURN 5 | . . . . . . . . . . . . . . . 2 . . 3 . . . . . Ally Attacks 26 | . . . . . . . . . . . . . 4 . . . . . 19 3 . . . Total Damage 1284 | . . . . . . . . . . . . . 181 . . . . . 1103 . . . . Kills 7 | . . . . . . . . . . . . . . . . . . . 7 . . . . Allies Corrupted . | . . . . . . . . . . . . . . . . . . . . . . . . Allies Melted 1 | . . . . . . . . . . . . . 1 . . . . . . . . . . Intel | -11 -10 -10 -10 -9 -8 -7 -7 -7 -7 -6 -6 -6 -5 -5 -5 -4 -4 -4 -4 -3 -3 -2 -1 ------- Run | Yrd Mat Min Exi Min Mat Fac Low Low Zio Pro Fac DSF Fac Upp Upp Fac Upp Upp War Pro Res Res Acc Robot Analysis Total 5 | . . . . . 2 . . . . . . . 1 . . 1 . . . . 1 . . Derelict Logs Recovered 6 | . . 1 . . . . . 2 1 . . . . . 1 . 1 . . . . . . Drone Launches 4 | . . . . . . . . . . . . . . . 2 . . 2 . . . . . Drone Recoveries 2 | . . . . . . . . . . . . . . . 2 . . . . . . . . Exploration | -11 -10 -10 -10 -9 -8 -7 -7 -7 -7 -6 -6 -6 -5 -5 -5 -4 -4 -4 -4 -3 -3 -2 -1 ------------- Run | Yrd Mat Min Exi Min Mat Fac Low Low Zio Pro Fac DSF Fac Upp Upp Fac Upp Upp War Pro Res Res Acc Turns Passed 6782 | 46 381 522 424 85 670 108 573 455 543 169 56 74 407 62 347 171 75 189 278 350 179 272 346 Spaces Moved 13706 | 46 323 405 379 71 487 275 1246 1089 1603 444 131 128 1028 206 908 410 289 422 813 1093 487 780 643 Core 36 | 1 1 . . . . . . . . . . . 14 . . . . . . . . . 20 Treads . | . . . . . . . . . . . . . . . . . . . . . . . . Legs . | . . . . . . . . . . . . . . . . . . . . . . . . Wheels 1587 | 45 322 405 379 71 365 . . . . . . . . . . . . . . . . . . Hover . | . . . . . . . . . . . . . . . . . . . . . . . . Flight 12083 | . . . . . 122 275 1246 1089 1603 444 131 128 1014 206 908 410 289 422 813 1093 487 780 623 Fastest Speed 20 | 50 80 95 105 120 28 28 28 32 32 33 30 30 30 30 30 25 25 25 25 25 26 26 20 Average Speed 38 | 79 97 104 110 120 97 28 30 32 32 34 32 30 30 30 30 26 25 25 25 26 27 26 24 Slowest Speed 500 | 80 500 105 120 120 145 28 32 37 33 129 40 30 100 30 30 30 25 25 27 101 32 26 50 Overloaded Moves 14 | . . . . . . . . . . . . . . . . . . . . . . . 14 Propulsion Burnouts . | . . . . . . . . . . . . . . . . . . . . . . . . Robots Hopped 49 | . . . . . . . . . . 1 . . 3 . 4 2 . . 7 4 4 9 15 Cave-ins Triggered . | . . . . . . . . . . . . . . . . . . . . . . . . Exploration Rate (%) 50 | 3 45 93 78 24 35 7 94 90 82 64 4 80 22 40 92 13 45 59 92 81 16 36 13 Regions Visited 23 Branch Regions 13 Pre-discovered Areas 3 | . . 1 . . . . . . 1 . . . . . 1 . . . . . . . . Known Exits Taken 8 | . . . . . . . . . . . 1 . 1 . . 1 1 1 . 1 1 1 . Unknown Exits Taken 14 | 1 1 1 1 1 1 1 1 1 1 1 . . . 1 1 . . . 1 . . . . Scrap Searched 22 | . . 1 . . . . 3 3 4 . . . . 2 2 . 1 3 . 3 . . . Spaces Dug 53 | . . 4 . . . . . . . . . . 10 . 3 14 . . . . 1 16 5 Terrain Destroyed 81 | . 14 18 . . . . . . . . . . 10 . 3 14 . . . . 1 16 5 Melee 49 | . . . . . . . . . . . . . 10 . 3 14 . . . . 1 16 5 Projectile . | . . . . . . . . . . . . . . . . . . . . . . . . AOE 32 | . 14 18 . . . . . . . . . . . . . . . . . . . . . Terrain Rammed . | . . . . . . . . . . . . . . . . . . . . . . . . Walls Destroyed . | . . . . . . . . . . . . . . . . . . . . . . . . Machines Disabled . | . . . . . . . . . . . . . . . . . . . . . . . . Actions | -11 -10 -10 -10 -9 -8 -7 -7 -7 -7 -6 -6 -6 -5 -5 -5 -4 -4 -4 -4 -3 -3 -2 -1 --------- Run | Yrd Mat Min Exi Min Mat Fac Low Low Zio Pro Fac DSF Fac Upp Upp Fac Upp Upp War Pro Res Res Acc Total 14841 | 52 359 483 383 71 663 298 1359 1163 1620 454 141 160 1089 205 962 438 290 498 876 1133 517 822 805 Wait 641 | . 7 37 . . 133 6 37 37 2 3 . 10 19 . 38 . . 68 46 14 9 20 155 Move 13597 | 45 322 404 378 70 486 274 1245 1088 1602 441 130 127 1022 205 899 405 288 421 801 1086 478 763 617 Hop 37 | . . . . . . . . . . 1 . . 2 . 4 2 . . 4 2 4 7 11 Pick Up 58 | 1 3 15 1 . 9 . 2 1 2 . 2 4 7 . 2 1 . 1 3 1 . 2 1 Fast Attach 87 | 6 6 2 1 . 4 3 3 4 4 1 5 4 5 . 3 6 1 2 1 6 9 5 6 Attach 31 | . . 3 . 1 2 1 1 1 . . 4 . . . 3 4 . 1 1 4 3 . 2 Detach 11 | . . . . . . . . 1 . . . 1 . . 2 1 . 1 1 . 3 1 . Swap 32 | . 2 3 . . 6 2 3 . 2 2 . . 1 . 2 1 . . 2 2 2 2 . Drop 70 | . 1 4 3 . 11 5 2 1 7 1 . 3 10 . . 3 1 1 4 4 4 5 . Fire 148 | . 17 15 . . . 6 56 29 . . . . . . 4 . . . 12 9 . . . Melee 102 | . . . . . 11 1 10 1 1 5 . 1 13 . 5 15 . 3 1 5 5 17 8 Ram 2 | . 1 . . . 1 . . . . . . . . . . . . . . . . . . Kick . | . . . . . . . . . . . . . . . . . . . . . . . . Crush . | . . . . . . . . . . . . . . . . . . . . . . . . Escape Stasis 15 | . . . . . . . . . . . . 10 . . . . . . . . . . 5 Rewire 10 | . . . . . . . . . . . . . 10 . . . . . . . . . . Trap . | . . . . . . . . . . . . . . . . . . . . . . . . Miscellaneous . | . . . . . . . . . . . . . . . . . . . . . . . . Route ------- -11/Scrapyard -10/Materials -10/Mines (discovered 3 exits: [*Mat x2] / *Exi) -10/Exiles -9/Mines -8/Materials -7/Factory -7/Lower Caves -7/Lower Caves (discovered 2 exits: *Fac / [*Zio]) -7/Zion -6/Proximity Caves -6/Factory (discovered 3 exits: Low / Ext / DSF) -6/DSF -5/Factory (discovered 4 exits: *Fac x2 / *Upp x2) -5/Upper Caves -5/Upper Caves -4/Factory -4/Upper Caves -4/Upper Caves (discovered 2 exits: *Res / *War) -4/Warlord -3/Proximity Caves -3/Research (discovered 3 exits: *Res x3) -2/Research (discovered 5 exits: *Acc x3 / *Qua x2) -1/Access (discovered 1 exit: Sur) History --------- Turn | Location | Event 14 | -11/Scrapyard | Discovered new exit (range 15) 47 | -11/Scrapyard | Entered Materials 60 | -10/Materials | Discovered new exit (range 15) 346 | -10/Materials | Build established: Mutant 428 | -10/Materials | Entered Mines 433 | -10/Mines | Met a Derelict bent on vengeance 660 | -10/Mines | Met a Derelict shopkeep closing up shop 717 | -10/Mines | Discovered new exit (range 14) 821 | -10/Mines | Learned location of Zion (-7) 881 | -10/Mines | Discovered new exit (range 14) 890 | -10/Mines | Received a Rocket Launcher from a helpful Derelict 946 | -10/Mines | Deemed a non-threat by the Exiles lab entrance 946 | -10/Mines | Discovered new exit (range 5) 950 | -10/Mines | Entered Exiles 976 | -10/Exiles | Met 8R-AWN 991 | -10/Exiles | Met EX-HEX 1026 | -10/Exiles | Met EX-BIN 1039 | -10/Exiles | Aligned with FarCom system 1040 | -10/Exiles | Given EX-Vault access code 1064 | -10/Exiles | Opened EX-Vault 1073 | -10/Exiles | Found Trap Reconfigurator 1098 | -10/Exiles | Warned to stay clear of 0b10 Research branches 1127 | -10/Exiles | Met EX-DEC 1252 | -10/Exiles | Visited The Gauntlet 1359 | -10/Exiles | Discovered new exit (range 14) 1374 | -10/Exiles | Left Exiles lab with Trap Reconfigurator 1374 | -10/Exiles | Entered Mines 1419 | -9/Mines | Discovered new exit (range 14) 1459 | -9/Mines | Entered Materials 1459 | -8/Materials | Evolved 4 slots: Propulsion x2, Utility x2 2105 | -8/Materials | Central database locked down 2126 | -8/Materials | Discovered new exit (range 9) 2129 | -8/Materials | Entered Factory 2129 | -7/Factory | Evolved 2 slots: Utility x2 2193 | -7/Factory | Discovered new exit (range 4) 2231 | -7/Factory | Fabricated Rocket Launcher? 2237 | -7/Factory | Entered Lower Caves 2386 | -7/Lower Caves | Build established: Sprinter 2484 | -7/Lower Caves | Attacked by a faux Warlord 2794 | -7/Lower Caves | Discovered new exit (range 8) 2810 | -7/Lower Caves | Entered another Lower Caves area 2812 | -7/Lower Caves | Discovered new exit (range 16) 2935 | -7/Lower Caves | Learned Factory terminal intel 2995 | -7/Lower Caves | Encountered a Warlord checkpoint 3043 | -7/Lower Caves | Spotted B-75 Beast 3080 | -7/Lower Caves | Learned location of 2 exits from Factory 3261 | -7/Lower Caves | Discovered new exit (range 8) 3265 | -7/Lower Caves | Entered Zion 3281 | -7/Zion | System corruption cleaned by Quarantine Array 3380 | -7/Zion | Given A8's code to call for help 3433 | -7/Zion | Found CR-A16's Pointy Stick 3456 | -7/Zion | Rebuked by Imprinter 3693 | -7/Zion | Build established: Derelict-Sprinter 3801 | -7/Zion | Discovered new exit (range 16) 3808 | -7/Zion | Entered Proximity Caves 3972 | -6/Proximity Caves | Discovered new exit (range 14) 3973 | -6/Proximity Caves | Attracted the attention of an 0b10 checkpoint 3977 | -6/Proximity Caves | Entered Factory 3977 | -6/Factory | Evolved 2 slots: Power x1, Utility x1 3978 | -6/Factory | Identified exit to Lower Caves 3978 | -6/Factory | Identified exit to Extension 3979 | -6/Factory | Loaded intel: 28 terminal locations 3990 | -6/Factory | Lost 9 parts (1p3n4u1w) 4033 | -6/Factory | Identified exit to DSF 4033 | -6/Factory | Entered DSF 4059 | -6/DSF | Additional patrols routed to DSF 4100 | -6/DSF | Discovered new exit (range 11) 4107 | -6/DSF | Entered Factory 4107 | -5/Factory | Evolved 2 slots: Utility x2 4108 | -5/Factory | Identified exit to Upper Caves 4263 | -5/Factory | Discovered new exit (range 15) 4406 | -5/Factory | Fabricated Mak. Power Source? 4510 | -5/Factory | Spotted B-75 Beast 4513 | -5/Factory | Discovered new exit (range 11) 4514 | -5/Factory | Entered Upper Caves 4541 | -5/Upper Caves | Encountered a Warlord checkpoint 4574 | -5/Upper Caves | Discovered new exit (range 8) 4576 | -5/Upper Caves | Entered another Upper Caves area 4579 | -5/Upper Caves | Ambushed by wild Derelicts 4609 | -5/Upper Caves | Build established: Hacker-Sprinter 4719 | -5/Upper Caves | Attacked by a delusional Derelict stockpiling Unaware 4772 | -5/Upper Caves | Learned location of 1 exit from Factory 4792 | -5/Upper Caves | Attracted the attention of an 0b10 base 4792 | -5/Upper Caves | Learned location of 2 exits from Lower Caves 4792 | -5/Upper Caves | Learned Research emergency access door positions 4798 | -5/Upper Caves | Attracted the attention of an 0b10 checkpoint 4885 | -5/Upper Caves | Discovered new exit (range 14) 4923 | -5/Upper Caves | Entered Factory 4923 | -4/Factory | Evolved 2 slots: Propulsion x1, Utility x1 4924 | -4/Factory | Identified exit to Upper Caves 4937 | -4/Factory | Spotted B-86 Titan 4972 | -4/Factory | Central database locked down 5078 | -4/Factory | Lost 3 parts (2p1u) 5094 | -4/Factory | Entered Upper Caves 5099 | -4/Upper Caves | Spotted B-86 Titan 5163 | -4/Upper Caves | Learned Research security intel 5165 | -4/Upper Caves | Discovered new exit (range 10) 5168 | -4/Upper Caves | Identified exit to Upper Caves 5169 | -4/Upper Caves | Entered another Upper Caves area 5176 | -4/Upper Caves | Discovered new exit (range 8) 5177 | -4/Upper Caves | Identified exit to Research 5270 | -4/Upper Caves | Attracted the attention of an 0b10 checkpoint 5343 | -4/Upper Caves | Discovered new exit (range 9) 5348 | -4/Upper Caves | Identified exit to Warlord 5358 | -4/Upper Caves | Entered Warlord 5401 | -4/Warlord | Met Warlord 5426 | -4/Warlord | Warlord's base attacked by MAIN.C 5508 | -4/Warlord | Found Prototype Energy Cannon 5508 | -4/Warlord | Identified Vortex Cannon 5627 | -4/Warlord | Discovered new exit (range 13) 5636 | -4/Warlord | Entered Proximity Caves 5641 | -3/Proximity Caves | Spotter reported a threat 5651 | -3/Proximity Caves | Lost 7 allies 5666 | -3/Proximity Caves | Lost 5 parts (1p1n3u) 5668 | -3/Proximity Caves | Spotted B-86 Titan 5727 | -3/Proximity Caves | Spotted B-86 Titan 5793 | -3/Proximity Caves | Attracted the attention of an 0b10 checkpoint 5901 | -3/Proximity Caves | Snuck into a huge 0b10 base via the rear entrance 5985 | -3/Proximity Caves | Discovered exit to Research (range 7) 5986 | -3/Proximity Caves | Entered Research 5986 | -3/Research | Evolved 2 slots: Propulsion x1, Utility x1 6015 | -3/Research | Lost 5 allies 6056 | -3/Research | Identified exit to Research 6121 | -3/Research | Lost 4 parts (1p3n) 6165 | -3/Research | Entered another Research area 6165 | -2/Research | Warlord forces began assault on 0b10 6165 | -2/Research | Evolved 2 slots: Utility x2 6175 | -2/Research | Identified exit to Access 6194 | -2/Research | Discovered new exit (range 15) 6251 | -2/Research | Identified exit to Quarantine 6275 | -2/Research | Research machine network offline 6297 | -2/Research | Met up with Warlord 6359 | -2/Research | Spotted B-90 Cyclops 6437 | -2/Research | Entered Access 6437 | -1/Access | Evolved 2 slots: Propulsion x2 6492 | -1/Access | Identified exit to Surface 6664 | -1/Access | Spotted B-99 Colossus 6687 | -1/Access | Search patrols dispatched 6770 | -1/Access | Core integrity fell below 50% 6780 | -1/Access | Core integrity fell below 20% 6783 | -1/Access | Destroyed by G-73 Enforcer with Phase Gun Last Messages --------------- 06769_ Adv. Hacking Suite severed. 06770_ Acquired Electron Diverter. 06771_ Electron Diverter destroyed. 06772_ Adv. Targeting Computer severed. 06773_ Slug penetrates Wall. 06773_ Penetrated by Slug. 06775_ Adv. Melee Analysis Suite severed. 06776_ Penetrated by Slug. 06777_ Acquired Impulse Thruster. 06778_ Penetrated by Slug. 06778_ Impulse Thruster destroyed. 06779_ Penetrated by Slug. 06779_ C-57 Dissector destroyed. 06779_ Penetrated by Slug. 06780_ Acquired Adv. Concussive RPG. 06781_ Slug penetrates Wall. 06781_ Penetrated by Slug. 06781_ Adv. Concussive RPG severed. 06782_ Slug penetrates H-88 Terminator. 06782_ Penetrated by Slug. Map ----- +----------------------------------------------------+ | ??????????????# # ## ???????????????? | | ??????????????# # ## #??????????????? | | ??????????????# # ## #??????????????? | | ??????????????# # ## #??????????????? | | ??????????????# ############### #??????????????? | | ??????????????+ #?????????????# #??????????????? | | ??????????????# #?????????????# #??????????????? | | ??????????????# #?????????????# #??????????????? | | ??????????????# ########??????# #??????????????? | | ??????????????# #??????#g #??????????????? | | ??????????????# #??????# #??????????????? | | ??????????????######## #??????# g#??????????????? | | ???????????########### #?????## l##?????????????? | | ???????????# " # #?????# #?????????????? | | ???????????# """ # #?????# #?????????????? | | ???????????# """ # #?????# #?????????????? | | ???????????# " # #?????# #?????????????? | | ???????????# # #?????## ##?????????????? | | ???????????# # #??????# #??????????????? | | ???????????# #??????# #??????????????? | | ???????????# #??????# ##########?????? | | ???????????########## ss####???# # #?????? | | ????????????????????# !s] #???# # #?????? | | ????????????????????# cc ###### # #?????? | | ????????????????????# h/g # ##????? | | ????????????????????# @hg* g + #????? | | ????????????????????# #!####g # = #????? | | ????????????????????### #####??# # = ##????? | | ??????????????????????###??????# # ! #????? | | ???????????????????????????????# # #????? | | ???????????????????????????????# ###### #????? | | ???????????????????????????????# #????######????? | | ????????????????????????"######" #??????????????? | | ????????????????????????" #??????????????? | | ????????????????????????" #??????????????? | | ????????????????????????" #??????????????? | | ????????????????????????" #??????????????? | | ???????????????????